fUSD/lending_fUSD_20260630
["ID","MTS","AMOUNT","RATE_DAILY","PERIOD"]
[426729988,1782762662000,-1027.870906,0.000364,30]
[426729991,1782762662000,-1027.870906,0.000364,30]
[426729993,1782762662000,-257422.57870392,0.000364,7]
[426729984,1782762662000,-3249.964024,0.000364,30]
[426729985,1782762662000,-1027.870906,0.000364,30]
[426729983,1782762662000,-185.160337,0.000364,30]
[426729976,1782762662000,-192.834512,0.000364,30]
[426729982,1782762662000,-192.834512,0.000364,30]
[426730065,1782762663000,-160.0,0.00036822,11]
[426730063,1782762663000,-364.0,0.00036816,7]
[426730061,1782762663000,-160.0,0.0003681,11]
[426730062,1782762663000,-798.0,0.00036816,7]
[426730056,1782762663000,-914.09128627,0.00036765,120]
[426730051,1782762663000,-401.0,0.0003675,2]
[426730052,1782762663000,-160.0,0.00036755,11]
[426730058,1782762663000,-536.0,0.00036775,2]
[426730060,1782762663000,-401.0,0.00036788,2]
[426730055,1782762663000,-455.0,0.00036765,2]
[426730059,1782762663000,-307.94,0.0003678,120]
[426730068,1782762663000,-396.0,0.00036838,2]
[426730071,1782762663000,-307.886726,0.00036869,30]
[426730067,1782762663000,-463.0,0.00036835,2]
[426730064,1782762663000,-401.0,0.0003682,2]
[426730066,1782762663000,-396.0,0.00036835,2]
[426730070,1782762663000,-310.59556489,0.00036866,2]
[426730072,1782762663000,-481.893979,0.00036869,30]
[426730075,1782762663000,-145205.04162982,0.000369,4]
[426730077,1782762663000,-2525.9,0.000369,30]
[426730080,1782762663000,-396.0,0.00036921,2]
[426730073,1782762663000,-20000.0,0.00036886,41]
[426730082,1782762663000,-4145.77853938,0.00036933,30]
[426730054,1782762663000,-283.0,0.00036764,2]
[426730083,1782762663000,-322.59,0.00036938,120]
[426730069,1782762663000,-11402.07861785,0.00036849,30]
[426730053,1782762663000,-401.0,0.0003676,2]
[426730035,1782762663000,-833.33333,0.0003663,80]
[426730044,1782762663000,-348.43498708,0.00036712,60]
[426730074,1782762663000,-396.0,0.00036899,2]
[426730025,1782762663000,-227.625,0.00036568,13]
[426730024,1782762663000,-332.85,0.00036564,120]
[426730026,1782762663000,-195.98,0.00036568,13]
[426730028,1782762663000,-151.74,0.00036568,13]
[426730027,1782762663000,-151.75,0.00036568,13]
[426730037,1782762663000,-160.0,0.00036639,11]
[426730031,1782762663000,-396.0,0.00036618,2]
[426730033,1782762663000,-833.33333,0.0003663,80]
[426730036,1782762663000,-833.33334,0.0003663,80]
[426730030,1782762663000,-9139.0,0.00036606,5]
[426730029,1782762663000,-513.8861849,0.00036605,60]
[426730032,1782762663000,-159.366209,0.00036621,110]
[426730034,1782762663000,-833.33333,0.0003663,80]
[426730049,1782762663000,-396.0,0.00036731,2]
[426730039,1782762663000,-160.0,0.00036675,11]
[426730038,1782762663000,-2336.0,0.00036639,11]
[426730040,1782762663000,-2336.0,0.0003668,11]
[426730043,1782762663000,-196.547,0.00036711,46]
[426730042,1782762663000,-2781.697,0.00036711,46]
[426730041,1782762663000,-200.0,0.00036698,10]
[426730048,1782762663000,-401.0,0.00036728,2]
[426730047,1782762663000,-373480.65775703,0.00036721,30]
[426730046,1782762663000,-307492.50230622,0.00036721,30]
[426730045,1782762663000,-396.0,0.00036713,2]
[426730050,1782762663000,-351.63,0.00036745,3]
[426730078,1782762663000,-396.0,0.00036914,2]
[426730057,1782762663000,-396.0,0.0003677,2]
[426730081,1782762663000,-161.369219,0.00036922,113]
[426730117,1782762663000,-2705.0,0.00036986,60]
[426730107,1782762663000,-2705.0,0.00036986,60]
[426730114,1782762663000,-2705.0,0.00036986,60]
[426730112,1782762663000,-2705.0,0.00036986,60]
[426730118,1782762663000,-2705.0,0.00036986,60]
[426730116,1782762663000,-2705.0,0.00036986,60]
[426730115,1782762663000,-2705.0,0.00036986,60]
[426730120,1782762663000,-2705.0,0.00036986,60]
[426730119,1782762663000,-2705.0,0.00036986,60]
[426730121,1782762663000,-2705.0,0.00036986,60]
[426730122,1782762663000,-2705.0,0.00036986,60]
[426730124,1782762663000,-2705.0,0.00036986,60]
[426730123,1782762663000,-2705.0,0.00036986,60]
[426730126,1782762663000,-2705.0,0.00036986,60]
[426730125,1782762663000,-2705.0,0.00036986,60]
[426730128,1782762663000,-2715.47244834,0.00036986,60]
[426730129,1782762663000,-1002.95375848,0.00036986,120]
[426730127,1782762663000,-2705.0,0.00036986,60]
[426730130,1782762663000,-1308.50481918,0.00036986,120]
[426730132,1782762663000,-2000.0,0.00036989,120]
[426730133,1782762663000,-2029.0,0.0003699,120]
[426730134,1782762663000,-1868.0,0.0003699,120]
[426730131,1782762663000,-401.0,0.00036988,2]
[426730135,1782762663000,-2000.0,0.00036994,2]
[426730136,1782762663000,-151.0,0.00036995,2]
[426730109,1782762663000,-2705.0,0.00036986,60]
[426730108,1782762663000,-2705.0,0.00036986,60]
[426730079,1782762663000,-660.0,0.00036915,10]
[426730110,1782762663000,-2705.0,0.00036986,60]
[426730076,1782762663000,-11051.35,0.000369,30]
[426730085,1782762663000,-520.92,0.00036938,120]
[426730084,1782762663000,-611.8,0.00036938,120]
[426730086,1782762663000,-401.0,0.00036947,2]
[426730090,1782762663000,-492.63,0.00036965,120]
[426730093,1782762663000,-587.41,0.00036965,120]
[426730088,1782762663000,-401.0,0.00036958,2]
[426730111,1782762663000,-2705.0,0.00036986,60]
[426730091,1782762663000,-552.48,0.00036965,120]
[426730087,1782762663000,-1136.4373935,0.0003695,2]
[426730092,1782762663000,-544.65,0.00036965,120]
[426730095,1782762663000,-1875.32,0.0003698,120]
[426730105,1782762663000,-2705.0,0.00036986,60]
[426730089,1782762663000,-500.0,0.00036958,2]
[426730094,1782762663000,-2034.97,0.0003698,120]
[426730098,1782762663000,-150.0,0.00036985,30]
[426730113,1782762663000,-2705.0,0.00036986,60]
[426730106,1782762663000,-2705.0,0.00036986,60]
[426730101,1782762663000,-1795.0,0.00036985,11]
[426730137,1782762663000,-833.33334,0.00036995,85]
[426730102,1782762663000,-1000.0,0.00036985,60]
[426730096,1782762663000,-150.0,0.00036985,30]
[426730099,1782762663000,-484.47231241,0.00036985,30]
[426730103,1782762663000,-500.0,0.00036986,7]
[426730097,1782762663000,-729.66369564,0.00036985,30]
[426730100,1782762663000,-160.0,0.00036985,11]
[426730104,1782762663000,-388.92392102,0.00036986,7]
[426730177,1782762664000,-2002.63,0.00037,120]
[426730175,1782762664000,-340.49975,0.00037,14]
[426730172,1782762664000,-340.49975,0.00037,14]
[426730174,1782762664000,-343.49975,0.00037,14]
[426730179,1782762664000,-2121.63,0.00037,120]
[426730163,1782762664000,-364.499755,0.00037,7]
[426730171,1782762664000,-343.49975,0.00037,14]
[426730168,1782762664000,-340.49975,0.00037,7]
[426730170,1782762664000,-364.499754,0.00037,14]
[426730169,1782762664000,-346.49975,0.00037,7]
[426730178,1782762664000,-283.0,0.00037,30]
[426730173,1782762664000,-346.49975,0.00037,14]
[426730190,1782762664000,-1000.0,0.00037,120]
[426730182,1782762664000,-6068.80843448,0.00037,120]
[426730180,1782762664000,-800.0,0.00037,45]
[426730185,1782762664000,-8380.55134443,0.00037,30]
[426730184,1782762664000,-785.93876807,0.00037,120]
[426730186,1782762664000,-1467.94825267,0.00037,30]
[426730181,1782762664000,-8091.08133838,0.00037,120]
[426730183,1782762664000,-101412.72095132,0.00037,30]
[426730191,1782762664000,-1000.0,0.00037,120]
[426730187,1782762664000,-4283.861627,0.00037,120]
[426730188,1782762664000,-165.1,0.00037,120]
[426730192,1782762664000,-1000.0,0.00037,120]
[426730164,1782762664000,-343.49975,0.00037,7]
[426730176,1782762664000,-346.49975,0.00037,14]
[426730167,1782762664000,-343.49975,0.00037,7]
[426730148,1782762664000,-151.0,0.00036996,30]
[426730162,1782762664000,-200.0,0.00036999,2]
[426730204,1782762664000,-401.31115679,0.00037,3]
[426730140,1782762664000,-152.0,0.00036996,30]
[426730141,1782762664000,-151.0,0.00036996,30]
[426730138,1782762664000,-833.33333,0.00036995,85]
[426730142,1782762664000,-151.0,0.00036996,30]
[426730139,1782762664000,-2000.0,0.00036995,30]
[426730144,1782762664000,-151.0,0.00036996,30]
[426730154,1782762664000,-152.0,0.00036996,30]
[426730155,1782762664000,-152.0,0.00036996,30]
[426730143,1782762664000,-151.0,0.00036996,30]
[426730146,1782762664000,-151.0,0.00036996,30]
[426730147,1782762664000,-151.0,0.00036996,30]
[426730145,1782762664000,-151.0,0.00036996,30]
[426730151,1782762664000,-152.0,0.00036996,30]
[426730149,1782762664000,-151.0,0.00036996,30]
[426730152,1782762664000,-152.0,0.00036996,30]
[426730150,1782762664000,-152.0,0.00036996,30]
[426730153,1782762664000,-152.0,0.00036996,30]
[426730156,1782762664000,-2000.0,0.00036998,14]
[426730159,1782762664000,-200.0,0.00036999,2]
[426730157,1782762664000,-66930.98941147,0.00036999,14]
[426730158,1782762664000,-489.6469237,0.00036999,2]
[426730165,1782762664000,-340.49975,0.00037,7]
[426730161,1782762664000,-200.0,0.00036999,2]
[426730160,1782762664000,-200.0,0.00036999,2]
[426730166,1782762664000,-346.49975,0.00037,7]
[426730194,1782762664000,-1000.0,0.00037,120]
[426730189,1782762664000,-15654.66234122,0.00037,60]
[426730199,1782762664000,-1000.0,0.00037,120]
[426730219,1782762664000,-306.24419,0.00037,30]
[426730227,1782762664000,-166.414994,0.00037,30]
[426730221,1782762664000,-151.0,0.00037,30]
[426730229,1782762664000,-156.520971,0.00037,30]
[426730225,1782762664000,-166.414994,0.00037,30]
[426730228,1782762664000,-151.0,0.00037,30]
[426730224,1782762664000,-166.414994,0.00037,30]
[426730233,1782762664000,-311.954531,0.00037,30]
[426730239,1782762664000,-151.0,0.00037,30]
[426730240,1782762664000,-151.0,0.00037,30]
[426730236,1782762664000,-151.0,0.00037,30]
[426730235,1782762664000,-151.0,0.00037,30]
[426730226,1782762664000,-166.414994,0.00037,30]
[426730242,1782762664000,-151.0,0.00037,30]
[426730241,1782762664000,-295.513275,0.00037,30]
[426730243,1782762664000,-151.0,0.00037,30]
[426730245,1782762664000,-295.513275,0.00037,30]
[426730244,1782762664000,-151.0,0.00037,30]
[426730234,1782762664000,-151.0,0.00037,30]
[426730246,1782762664000,-151.0,0.00037,30]
[426730247,1782762664000,-151.0,0.00037,30]
[426730251,1782762664000,-273.589641,0.00037,30]
[426730248,1782762664000,-151.0,0.00037,30]
[426730250,1782762664000,-295.513275,0.00037,30]
[426730193,1782762664000,-1000.0,0.00037,120]
[426730249,1782762664000,-151.0,0.00037,30]
[426730237,1782762664000,-151.0,0.00037,30]
[426730223,1782762664000,-151.0,0.00037,30]
[426730238,1782762664000,-151.0,0.00037,30]
[426730220,1782762664000,-306.24419,0.00037,30]
[426730198,1782762664000,-1000.0,0.00037,120]
[426730222,1782762664000,-151.0,0.00037,30]
[426730197,1782762664000,-1000.0,0.00037,120]
[426730205,1782762664000,-800.0,0.00037,45]
[426730196,1782762664000,-1000.0,0.00037,120]
[426730195,1782762664000,-1000.0,0.00037,120]
[426730200,1782762664000,-800.0,0.00037,45]
[426730201,1782762664000,-2000.0,0.00037,37]
[426730203,1782762664000,-800.0,0.00037,45]
[426730207,1782762664000,-800.0,0.00037,45]
[426730212,1782762664000,-160.0,0.00037,11]
[426730208,1782762664000,-800.0,0.00037,45]
[426730213,1782762664000,-156.469515,0.00037,30]
[426730202,1782762664000,-800.0,0.00037,45]
[426730232,1782762664000,-311.954531,0.00037,30]
[426730231,1782762664000,-311.954531,0.00037,30]
[426730209,1782762664000,-800.0,0.00037,45]
[426730230,1782762664000,-311.954531,0.00037,30]
[426730217,1782762664000,-306.24419,0.00037,30]
[426730214,1782762664000,-151.0,0.00037,30]
[426730218,1782762664000,-151.0,0.00037,30]
[426730211,1782762664000,-2336.0,0.00037,11]
[426730206,1782762664000,-800.0,0.00037,45]
[426730210,1782762664000,-800.0,0.00037,45]
[426730215,1782762664000,-306.24419,0.00037,30]
[426730216,1782762664000,-151.0,0.00037,30]
[426730288,1782762665000,-9316.764672,0.00037,30]
[426730291,1782762665000,-151.0,0.00037,30]
[426730295,1782762665000,-151.0,0.00037,30]
[426730293,1782762665000,-1020.147463,0.00037,30]
[426730287,1782762665000,-1020.147463,0.00037,30]
[426730286,1782762665000,-9316.764672,0.00037,30]
[426730285,1782762665000,-267.234382,0.00037,30]
[426730289,1782762665000,-1020.147463,0.00037,30]
[426730290,1782762665000,-151.0,0.00037,30]
[426730284,1782762665000,-267.234382,0.00037,30]
[426730292,1782762665000,-9316.764672,0.00037,30]
[426730281,1782762665000,-218.150287,0.00037,30]
[426730299,1782762665000,-151.0,0.00037,30]
[426730310,1782762665000,-630.160722,0.00037,7]
[426730301,1782762665000,-173.305632,0.00037,30]
[426730296,1782762665000,-9316.764672,0.00037,30]
[426730297,1782762665000,-1020.147463,0.00037,30]
[426730300,1782762665000,-1799.170193,0.00037,30]
[426730298,1782762665000,-151.0,0.00037,30]
[426730302,1782762665000,-151.0,0.00037,30]
[426730304,1782762665000,-151.0,0.00037,30]
[426730303,1782762665000,-1799.170193,0.00037,30]
[426730312,1782762665000,-192.05,0.00037,30]
[426730305,1782762665000,-1799.170193,0.00037,30]
[426730313,1782762665000,-630.160722,0.00037,7]
[426730307,1782762665000,-270.827588,0.00037,30]
[426730282,1782762665000,-267.234382,0.00037,30]
[426730294,1782762665000,-151.0,0.00037,30]
[426730283,1782762665000,-151.00001,0.00037,30]
[426730254,1782762665000,-151.0,0.00037,30]
[426730271,1782762665000,-332.810245,0.00037,30]
[426730306,1782762665000,-151.0,0.00037,30]
[426730252,1782762665000,-151.0,0.00037,30]
[426730256,1782762665000,-151.0,0.00037,30]
[426730253,1782762665000,-295.513275,0.00037,30]
[426730255,1782762665000,-151.0,0.00037,30]
[426730257,1782762665000,-151.0,0.00037,30]
[426730265,1782762665000,-151.0,0.00037,30]
[426730264,1782762665000,-365.414,0.00037,30]
[426730258,1782762665000,-151.0,0.00037,30]
[426730262,1782762665000,-365.414,0.00037,30]
[426730263,1782762665000,-151.0,0.00037,30]
[426730266,1782762665000,-365.414,0.00037,30]
[426730259,1782762665000,-151.0,0.00037,30]
[426730260,1782762665000,-365.414,0.00037,30]
[426730261,1782762665000,-151.0,0.00037,30]
[426730268,1782762665000,-311.919381,0.00037,30]
[426730267,1782762665000,-311.919381,0.00037,30]
[426730270,1782762665000,-311.919381,0.00037,30]
[426730277,1782762665000,-332.810245,0.00037,30]
[426730273,1782762665000,-332.810245,0.00037,30]
[426730278,1782762665000,-5772.041739,0.00037,30]
[426730269,1782762665000,-311.919381,0.00037,30]
[426730272,1782762665000,-5772.041739,0.00037,30]
[426730275,1782762665000,-332.810245,0.00037,30]
[426730274,1782762665000,-5772.041739,0.00037,30]
[426730279,1782762665000,-267.234382,0.00037,30]
[426730276,1782762665000,-5772.041739,0.00037,30]
[426730280,1782762665000,-1632.96,0.00037,30]
[426730308,1782762665000,-1799.170193,0.00037,30]
[426730370,1782762665000,-178.137689,0.00037,30]
[426730311,1782762665000,-879.123218,0.00037,7]
[426730343,1782762665000,-1939.673146,0.00037,30]
[426730350,1782762665000,-158.885528,0.00037,30]
[426730341,1782762665000,-482.147791,0.00037,30]
[426730351,1782762665000,-1939.673146,0.00037,30]
[426730349,1782762665000,-207.55,0.00037,30]
[426730348,1782762665000,-1939.673146,0.00037,30]
[426730345,1782762665000,-185.963335,0.00037,30]
[426730347,1782762665000,-3701.167344,0.00037,30]
[426730346,1782762665000,-158.885528,0.00037,30]
[426730354,1782762665000,-4623.96722,0.00037,30]
[426730355,1782762665000,-178.137689,0.00037,30]
[426730357,1782762665000,-4623.96722,0.00037,30]
[426730364,1782762665000,-162.698519,0.00037,30]
[426730358,1782762665000,-151.0,0.00037,30]
[426730362,1782762665000,-151.0,0.00037,30]
[426730360,1782762665000,-151.0,0.00037,30]
[426730361,1782762665000,-4623.96722,0.00037,30]
[426730365,1782762665000,-151.0,0.00037,30]
[426730363,1782762665000,-178.137689,0.00037,30]
[426730359,1782762665000,-178.137689,0.00037,30]
[426730367,1782762665000,-5839.153419,0.00037,30]
[426730369,1782762665000,-151.0,0.00037,30]
[426730368,1782762665000,-1293.214118,0.00037,30]
[426730366,1782762665000,-4623.96722,0.00037,30]
[426730371,1782762665000,-162.698519,0.00037,30]
[426730372,1782762665000,-151.0,0.00037,30]
[426730309,1782762665000,-879.123218,0.00037,7]
[426730353,1782762665000,-158.885528,0.00037,30]
[426730344,1782762665000,-207.55,0.00037,30]
[426730356,1782762665000,-158.885528,0.00037,30]
[426730342,1782762665000,-3701.167344,0.00037,30]
[426730352,1782762665000,-151.0,0.00037,30]
[426730326,1782762665000,-151.0,0.00037,30]
[426730316,1782762665000,-1649.36794,0.00037,7]
[426730327,1782762665000,-482.147791,0.00037,30]
[426730318,1782762665000,-192.05,0.00037,30]
[426730323,1782762665000,-192.05,0.00037,30]
[426730319,1782762665000,-879.123218,0.00037,7]
[426730317,1782762665000,-630.160722,0.00037,7]
[426730322,1782762665000,-83000.0,0.00037,120]
[426730320,1782762665000,-1649.36794,0.00037,7]
[426730315,1782762665000,-879.123218,0.00037,7]
[426730321,1782762665000,-630.160722,0.00037,7]
[426730324,1782762665000,-1649.36794,0.00037,7]
[426730325,1782762665000,-1649.36794,0.00037,7]
[426730314,1782762665000,-192.05,0.00037,30]
[426730328,1782762665000,-151.0,0.00037,30]
[426730332,1782762665000,-3701.167344,0.00037,30]
[426730340,1782762665000,-151.000054,0.00037,30]
[426730339,1782762665000,-185.963335,0.00037,30]
[426730329,1782762665000,-185.963335,0.00037,30]
[426730338,1782762665000,-3701.167344,0.00037,30]
[426730334,1782762665000,-185.963335,0.00037,30]
[426730335,1782762665000,-1939.673146,0.00037,30]
[426730336,1782762665000,-482.147791,0.00037,30]
[426730331,1782762665000,-207.55,0.00037,30]
[426730333,1782762665000,-151.0,0.00037,30]
[426730330,1782762665000,-482.147791,0.00037,30]
[426730337,1782762665000,-207.55,0.00037,30]
[426730411,1782762666000,-275.934024,0.00037,30]
[426730413,1782762666000,-151.0,0.00037,30]
[426730414,1782762666000,-214.784109,0.00037,30]
[426730404,1782762666000,-1071.291364,0.00037,30]
[426730415,1782762666000,-390.280005,0.00037,30]
[426730409,1782762666000,-151.0,0.00037,30]
[426730412,1782762666000,-156.530422,0.00037,30]
[426730408,1782762666000,-5376.721794,0.00037,30]
[426730405,1782762666000,-151.0,0.00037,30]
[426730407,1782762666000,-151.0,0.00037,30]
[426730410,1782762666000,-390.280005,0.00037,30]
[426730406,1782762666000,-390.280005,0.00037,30]
[426730417,1782762666000,-151.0,0.00037,30]
[426730427,1782762666000,-1211.988348,0.00037,30]
[426730425,1782762666000,-151.0,0.00037,30]
[426730416,1782762666000,-156.530422,0.00037,30]
[426730419,1782762666000,-390.280005,0.00037,30]
[426730418,1782762666000,-214.784109,0.00037,30]
[426730420,1782762666000,-156.530422,0.00037,30]
[426730423,1782762666000,-156.530422,0.00037,30]
[426730421,1782762666000,-151.0,0.00037,30]
[426730424,1782762666000,-214.784109,0.00037,30]
[426730422,1782762666000,-214.784109,0.00037,30]
[426730429,1782762666000,-1211.988348,0.00037,30]
[426730428,1782762666000,-2551.007262,0.00037,30]
[426730403,1782762666000,-5376.721794,0.00037,30]
[426730426,1782762666000,-1211.988348,0.00037,30]
[426730398,1782762666000,-5376.721794,0.00037,30]
[426730430,1782762666000,-2551.007262,0.00037,30]
[426730400,1782762666000,-151.0,0.00037,30]
[426730377,1782762666000,-151.0,0.00037,30]
[426730378,1782762666000,-162.698519,0.00037,30]
[426730376,1782762666000,-151.0,0.00037,30]
[426730375,1782762666000,-1293.214118,0.00037,30]
[426730373,1782762666000,-151.0,0.00037,30]
[426730374,1782762666000,-5839.153419,0.00037,30]
[426730379,1782762666000,-151.0,0.00037,30]
[426730383,1782762666000,-1312.997201,0.00037,30]
[426730390,1782762666000,-1293.214118,0.00037,30]
[426730380,1782762666000,-5839.153419,0.00037,30]
[426730382,1782762666000,-1293.214118,0.00037,30]
[426730381,1782762666000,-4141.455722,0.00037,30]
[426730384,1782762666000,-1071.291364,0.00037,30]
[426730385,1782762666000,-151.0,0.00037,30]
[426730386,1782762666000,-151.0,0.00037,30]
[426730387,1782762666000,-162.698519,0.00037,30]
[426730389,1782762666000,-151.0,0.00037,30]
[426730388,1782762666000,-5839.153419,0.00037,30]
[426730392,1782762666000,-4141.455722,0.00037,30]
[426730394,1782762666000,-1071.291364,0.00037,30]
[426730391,1782762666000,-1312.997201,0.00037,30]
[426730402,1782762666000,-4141.455722,0.00037,30]
[426730393,1782762666000,-5376.721794,0.00037,30]
[426730396,1782762666000,-1312.997201,0.00037,30]
[426730397,1782762666000,-4141.455722,0.00037,30]
[426730395,1782762666000,-151.0,0.00037,30]
[426730399,1782762666000,-1071.291364,0.00037,30]
[426730401,1782762666000,-1312.997201,0.00037,30]
[426730439,1782762666000,-166.9405,0.00037,30]
[426730465,1782762666000,-5271.588622,0.00037,30]
[426730440,1782762666000,-1874.646646,0.00037,30]
[426730466,1782762666000,-1874.646646,0.00037,30]
[426730476,1782762666000,-1794.946463,0.00037,30]
[426730477,1782762666000,-2423.808215,0.00037,30]
[426730491,1782762666000,-492.080444,0.00037,30]
[426730468,1782762666000,-1794.946463,0.00037,30]
[426730473,1782762666000,-151.0,0.00037,30]
[426730472,1782762666000,-191.705011,0.00037,30]
[426730470,1782762666000,-1049.811169,0.00037,30]
[426730475,1782762666000,-10850.85967,0.00037,30]
[426730471,1782762666000,-151.0,0.00037,30]
[426730469,1782762666000,-2423.808215,0.00037,30]
[426730467,1782762666000,-1407.782534,0.00037,30]
[426730464,1782762666000,-166.9405,0.00037,30]
[426730474,1782762666000,-5271.588622,0.00037,30]
[426730478,1782762666000,-1049.811169,0.00037,30]
[426730480,1782762666000,-10850.85967,0.00037,30]
[426730482,1782762666000,-1794.946463,0.00037,30]
[426730483,1782762666000,-1558.167375,0.00037,30]
[426730481,1782762666000,-492.080444,0.00037,30]
[426730487,1782762666000,-9739.217006,0.00037,30]
[426730484,1782762666000,-10749.118255,0.00037,30]
[426730485,1782762666000,-2423.808215,0.00037,30]
[426730486,1782762666000,-151.0,0.00037,30]
[426730489,1782762666000,-912.039531,0.00037,30]
[426730490,1782762666000,-10850.85967,0.00037,30]
[426730488,1782762666000,-5271.588622,0.00037,30]
[426730479,1782762666000,-5271.588622,0.00037,30]
[426730461,1782762666000,-7810.677713,0.00037,30]
[426730433,1782762666000,-2551.007262,0.00037,30]
[426730463,1782762666000,-191.705011,0.00037,30]
[426730432,1782762666000,-1211.988348,0.00037,30]
[426730437,1782762666000,-7810.677713,0.00037,30]
[426730435,1782762666000,-2551.007262,0.00037,30]
[426730438,1782762666000,-2080.750512,0.00037,30]
[426730431,1782762666000,-151.0,0.00037,30]
[426730436,1782762666000,-151.0,0.00037,30]
[426730434,1782762666000,-151.0,0.00037,30]
[426730462,1782762666000,-151.0,0.00037,30]
[426730451,1782762666000,-7810.677713,0.00037,30]
[426730441,1782762666000,-1407.782534,0.00037,30]
[426730452,1782762666000,-151.0,0.00037,30]
[426730446,1782762666000,-1874.646646,0.00037,30]
[426730445,1782762666000,-166.9405,0.00037,30]
[426730442,1782762666000,-7810.677713,0.00037,30]
[426730444,1782762666000,-191.705011,0.00037,30]
[426730448,1782762666000,-2000.0,0.00037,7]
[426730460,1782762666000,-1049.811169,0.00037,30]
[426730457,1782762666000,-1407.782534,0.00037,30]
[426730458,1782762666000,-2423.808215,0.00037,30]
[426730456,1782762666000,-1794.946463,0.00037,30]
[426730454,1782762666000,-166.9405,0.00037,30]
[426730459,1782762666000,-2080.750512,0.00037,30]
[426730449,1782762666000,-2080.750512,0.00037,30]
[426730450,1782762666000,-1049.811169,0.00037,30]
[426730443,1782762666000,-2080.750512,0.00037,30]
[426730453,1782762666000,-191.705011,0.00037,30]
[426730447,1782762666000,-1407.782534,0.00037,30]
[426730455,1782762666000,-1874.646646,0.00037,30]
[426730532,1782762667000,-253.366401,0.00037,30]
[426730531,1782762667000,-206.275724,0.00037,30]
[426730533,1782762667000,-1950.878986,0.00037,30]
[426730534,1782762667000,-356.332054,0.00037,30]
[426730527,1782762667000,-1950.878986,0.00037,30]
[426730530,1782762667000,-1502.312856,0.00037,30]
[426730529,1782762667000,-151.0,0.00037,30]
[426730523,1782762667000,-1502.312856,0.00037,30]
[426730528,1782762667000,-356.332054,0.00037,30]
[426730525,1782762667000,-206.275724,0.00037,30]
[426730524,1782762667000,-151.0,0.00037,30]
[426730536,1782762667000,-828.426999,0.00037,30]
[426730559,1782762667000,-2208.721779,0.00037,30]
[426730539,1782762667000,-1502.312856,0.00037,30]
[426730535,1782762667000,-151.0,0.00037,30]
[426730537,1782762667000,-151.0,0.00037,30]
[426730538,1782762667000,-206.275724,0.00037,30]
[426730540,1782762667000,-1950.878986,0.00037,30]
[426730545,1782762667000,-178.175314,0.00037,30]
[426730547,1782762667000,-340.29399903,0.00037,2]
[426730541,1782762667000,-828.426999,0.00037,30]
[426730542,1782762667000,-828.426999,0.00037,30]
[426730544,1782762667000,-828.426999,0.00037,30]
[426730543,1782762667000,-178.175314,0.00037,30]